Workbook

Sheet AER only (hidden)
B1: Data in these columns used for data validation and database purposes.
B2: Date last modified: | C2: 2017-01-16 | D2: added (Albury and Victora) for AGN
C3: 2016-10-17 | D3: updated TransGrid's correct legal name, corrected TasNetworks (T) to June financial year
C4: 2017-02-01 | D4: inserted Power and Water, added NRs (dms_FeederCat_1 and dms_FeederCat_2)
C5: 2017-03-03 | D5: inserted AEMO as a business | AC5: FOR ELECTRICITY BUSINESSES ONLY
AC6: Feeder Types | AG6: TasNetworks (D) | AH6: MAIFI flag | AI6: Feeder Names
AC7: CBD | AD7: Urban | AE7: Short rural | AF7: long rural | AG7: EXTRA
B8: dms_TradingName_List | C8: dms_TradingNameFull_List | D8: dms_ABN_List | E8: dms_JurisdictionList | F8: dms_Sector_List | G8: dms_Segment_List | H8: dms_FormControl_List | I8: dms_RPT_List | J8: dms_RPTMonth_List | K8: dms_CRCPlength_List | L8: dms_FRCPlength_List | M8: dms_663_List | N8: dms_DeterminationRef_List | O8: dms_Addr1_List | P8: dms_Addr2_List | Q8: dms_Suburb_List | R8: dms_State_List | S8: dms_PostCode_List | T8: dms_PAddr1_List | U8: dms_PAddr2_List | V8: dms_PSuburb_List | W8: dms_PState_List | X8: dms_PPostCode_List | Y8: dms_ContactName1_List | Z8: dms_ContactPh1_List | AA8: dms_ContactEmail_List | AB8: Column1 | AC8: dms_CBD_flag | AD8: dms_Urban_flag | AE8: dms_ShortRural_flag | AF8: dms_LongRural_flag | AG8: dms_FeederType_5_flag | AH8: dms_MAIFI_flag_List | AI8: dms_FeederName_1 | AJ8: dms_FeederName_2 | AK8: dms_FeederName_3 | AL8: dms_FeederName_4 | AM8: dms_FeederName_5
B9: ActewAGL Distribution | C9: ActewAGL Distribution | D9: 76670568688 | E9: ACT | F9: Electricity | G9: Distribution | H9: Revenue cap | I9: Financial | J9: June | K9: 5 | L9: 5 | M9: 5 | N9: 2014-19 Distribution Determination | O9: 40 Bunda Street | Q9: CANBERRA | R9: ACT | S9: 2600 | T9: GPO BOX 366 | V9: CANBERRA | W9: ACT | X9: 2601 | Y9: Robert Walker | Z9: 02 6248 3847 | AA9: robert.walker@actewagle.com.au | AC9: NO | AD9: YES | AE9: YES | AF9: NO | AG9: NO | AI9: CBD | AJ9: Urban | AK9: Short rural | AL9: Long rural | AN9: ActewAGL Distribution
B10: ActewAGL Distribution (Tx Assets) | C10: ActewAGL Distribution (Tx Assets) | D10: 76670568688 | E10: ACT | F10: Electricity | G10: Distribution | H10: Revenue cap | I10: Financial | J10: June | K10: 5 | L10: 5 | M10: 5 | N10: distribution determination | O10: 40 Bunda Street | Q10: CANBERRA | R10: ACT | S10: 2600 | T10: GPO BOX 366 | V10: CANBERRA | W10: ACT | X10: 2601 | Y10: Robert Walker | Z10: 02 6248 3847 | AA10: robert.walker@actewagle.com.au | AI10: CBD | AJ10: Urban | AK10: Short rural | AL10: Long rural | AN10: ActewAGL Distribution (Tx Assets)
B11: ActewAGL Gas | C11: ActewAGL Gas | D11: 76670568688 | E11: ACT | F11: Gas | G11: Distribution | H11: Weighted average price cap | I11: Financial | J11: June | K11: 5 | L11: 5 | M11: x | O11: 40 Bunda Street | Q11: CANBERRA | R11: ACT | S11: 2600 | T11: GPO BOX 366 | V11: CANBERRA | W11: ACT | X11: 2601 | Y11: Philip Deamer | Z11: 02 6248 3438 | AA11: GasAAReview@actewagl.com.au | AN11: ActewAGL Gas
B12: AEMO | C12: Australian Energy Market Operator Ltd | D12: 94072010327 | E12: Vic | F12: Electricity | G12: Transmission | H12: - | I12: Financial | J12: March | K12: 5 | L12: 5 | M12: x | N12: - | O12: Level 22 | P12: 530 Collins Street | Q12: MELBOURNE | R12: VIC | S12: 3000 | T12: GPO Box 2008 | V12: MELBOURNE | W12: VIC | X12: 3001 | AN12: AEMO
B13: AGN (Albury and Victoria) | C13: Australian Gas Networks Limited (reporting data for Albury and Victoria) | D13: 19078551685 | E13: Vic | F13: Gas | G13: Distribution | H13: Weighted average price cap | I13: Calendar | J13: December | K13: 5 | L13: 5 | M13: x | O13: Level 6 | P13: 400 King William Street | Q13: ADELAIDE | R13: SA | S13: 5000 | T13: PO Box 6468 | U13: Halifax Street | V13: ADELAIDE | W13: SA | X13: 5000 | Y13: Craig de Laine | Z13: 08 8418 1129 | AA13: craig.delaine@agn.com.au | AI13: CBD | AJ13: Urban | AK13: Short rural | AL13: Long rural | AN13: AGN (Albury)
B14: AGN (Albury) | C14: Australian Gas Networks Limited (reporting data for Albury) | D14: 19078551685 | E14: Vic | F14: Gas | G14: Distribution | H14: Weighted average price cap | I14: Calendar | J14: December | K14: 5 | L14: 5 | M14: x | O14: Level 6 | P14: 400 King William Street | Q14: ADELAIDE | R14: SA | S14: 5000 | T14: PO Box 6468 | U14: Halifax Street | V14: ADELAIDE | W14: SA | X14: 5000 | Y14: Craig de Laine | Z14: 08 8418 1129 | AA14: craig.delaine@agn.com.au | AI14: CBD | AJ14: Urban | AK14: Short rural | AL14: Long rural
B15: AGN (SA) | C15: Australian Gas Networks Limited (reporting data for SA) | D15: 19078551685 | E15: SA | F15: Gas | G15: Distribution | H15: Weighted average price cap | I15: Financial | J15: June | K15: 5 | L15: 5 | M15: 5 | N15: distribution determination | O15: Level 6 | P15: 400 King William Street | Q15: ADELAIDE | R15: SA | S15: 5000 | T15: PO Box 6468 | U15: Halifax Street | V15: ADELAIDE | W15: SA | X15: 5000 | Y15: Craig de Laine | Z15: 08 8418 1129 | AA15: craig.delaine@agn.com.au | AN15: AGN (SA)
B16: AGN (Victoria) | C16: Australian Gas Networks Limited (reporting data for Victoria) | D16: 19078551685 | E16: Vic | F16: Gas | G16: Distribution | H16: Weighted average price cap | I16: Calendar | J16: December | K16: 5 | L16: 5 | M16: x | AN16: AGN (Victoria)
B17: Amadeus | C17: APT Pipelines (NT) Pty Ltd | D17: 39009737393 | E17: NT | F17: Gas | G17: Transmission | H17: Weighted average price cap | I17: Financial | J17: June | K17: 5 | L17: 5 | M17: x | N17: n/a | O17: Level 19, HSBC Building | P17: 580 George Street | Q17: SYDNEY | R17: NSW | S17: 2000 | T17: Level 19, HSBC Building | U17: 580 George Street | V17: SYDNEY | W17: NSW | X17: 2000 | Y17: Alexandra Curran | Z17: 02 9275 0020 | AA17: alexandra.curran@apa.com.au | AN17: Amadeus
B18: APA GasNet | C18: APA GasNet Australia (Operations) Pty Ltd | D18: 065083009 | E18: Vic | F18: Gas | G18: Transmission | H18: Weighted average price cap | I18: Calendar | J18: December | K18: 5 | L18: 5 | M18: x | O18: Level 19, HSBC Building | P18: 580 George Street | Q18: SYDNEY | R18: NSW | S18: 2000 | T18: PO Box R41 | V18: ROYAL EXCHANGE | W18: NSW | X18: 1225 | Z18: 02 9693 0000 | AN18: APA GasNet
B19: Ausgrid | C19: Ausgrid | D19: 78508211731 | E19: NSW | F19: Electricity | G19: Distribution | H19: Revenue cap | I19: Financial | J19: June | K19: 5 | L19: 5 | M19: 5 | N19: 2014-19 Distribution Determination | O19: 570 George St | Q19: SYDNEY | R19: NSW | S19: 2000 | T19: GPO Box 4009 | V19: SYDNEY | W19: NSW | X19: 2001 | Y19: John Thomson | Z19: (02) 9269 2312 | AA19: john.thomson@ausgrid.com.au | AC19: YES | AD19: YES | AE19: YES | AF19: YES | AG19: NO | AI19: CBD | AJ19: Urban | AK19: Short rural | AL19: Long rural | AN19: Ausgrid
B20: Ausgrid (Tx Assets) | C20: Ausgrid (Tx Assets) | D20: 67505337385 | E20: NSW | F20: Electricity | G20: Distribution | H20: Revenue cap | I20: Financial | J20: June | K20: 5 | L20: 5 | M20: 5 | N20: distribution determination | R20: NSW | AI20: CBD | AJ20: Urban | AK20: Short rural | AL20: Long rural | AN20: Ausgrid (Tx Assets)
B21: AusNet (D) | C21: AusNet Electricity Services Pty Ltd | D21: 91064651118 | E21: Vic | F21: Electricity | G21: Distribution | H21: Revenue cap | I21: Calendar | J21: December | K21: 5 | L21: 5 | M21: 2 | N21: 2016-20 Distribution Determination | O21: Level 32 | P21: 2 Southbank Boulevard | Q21: SOUTHBANK | R21: Vic | S21: 3006 | T21: Locked Bag 14051 | V21: MELBOURNE CITY MAIL CENTRE | W21: VIC | X21: 8001 | AD21: YES | AE21: YES | AF21: YES | AG21: NO | AI21: CBD | AJ21: Urban | AK21: Short rural | AL21: Long rural | AN21: AusNet (D)
B22: AusNet (Gas) | C22: AusNet Gas Services | D22: 086015036 | E22: Vic | F22: Gas | G22: Distribution | H22: Weighted average price cap | I22: Calendar | J22: December | K22: 5 | L22: 5 | M22: X | O22: Level 19, HSBC Building | P22: 580 George Street | Q22: SYDNEY | R22: NSW | S22: 2000 | T22: PO Box R41 | V22: ROYAL EXCHANGE | W22: NSW | X22: 1225 | Y22: Alexandra Curran | Z22: 02 9275 0020 | AA22: alexandra.curran@apa.com.au | AN22: AusNet (Gas)
B23: AusNet (T) | C23: Ausnet Services (Transmission) Ltd | D23: 48116124362 | E23: Vic | F23: Electricity | G23: Transmission | H23: Revenue cap | I23: Financial | J23: March | K23: 5 | L23: 5 | M23: 2 | N23: transmission determination | O23: Level 32 | P23: 2 Southbank Boulevard | Q23: SOUTHBANK | R23: Vic | S23: 3006 | T23: Locked Bag 14051 | V23: MELBOURNE CITY MAIL CENTRE | W23: Vic | X23: 8001 | Y23: Clare Thompson | Z23: 03 9695 6670 | AA23: clare.e.thompson@ausnetservices.com.au | AI23: CBD | AJ23: Urban | AK23: Short rural | AL23: Long rural | AN23: AusNet (T)
B24: Australian Distribution Co. | C24: Australian Distribution Co. | D24: 11222333444 | E24: - | F24: Electricity | G24: Distribution | H24: Revenue cap | I24: Financial | J24: June | K24: 5 | L24: 5 | M24: 2 | N24: distribution determination | O24: 123 Straight Street | Q24: SYDNEY | R24: NSW | S24: 2000 | T24: PO Box 123 | V24: SYDNEY | W24: NSW | X24: 2000 | Y24: Bob Smith | Z24: 02 1234 5678 | AA24: bob@auselec.net.au | AI24: CBD | AJ24: Urban | AK24: Short rural | AL24: Long rural | AN24: Australian Distribution Co.
B25: Australian Distribution Co. (Vic) | C25: Australian Distribution Co. (Victoria) | D25: 11222333444 | E25: Vic | F25: Electricity | G25: Distribution | H25: Revenue cap | I25: Calendar | J25: December | K25: 5 | L25: 5 | M25: 2 | N25: distribution determination | O25: 123 Straight Street | Q25: MELBOURNE | R25: Vic | S25: 3000 | T25: PO Box 123 | V25: MELBOURNE | W25: VIC | X25: 3000 | Y25: Bob Smith | Z25: 02 1234 5678 | AA25: bob@auselec.net.au | AI25: CBD | AJ25: Urban | AK25: Short rural | AL25: Long rural | AN25: Australian Distribution Co. (Vic)
B26: Australian Transmission Co. | C26: Australian Transmission Co. | D26: 11222333444 | E26: - | F26: Electricity | G26: Transmission | H26: Revenue cap | I26: Financial | J26: June | K26: 5 | L26: 5 | M26: 5 | N26: transmission determination | O26: 123 Straight Street | Q26: SYDNEY | R26: NSW | S26: 2000 | T26: PO Box 123 | V26: SYDNEY | W26: NSW | X26: 2000 | Y26: Bob Smith | Z26: 02 1234 5678 | AA26: bob@auselec.net.au | AI26: CBD | AJ26: Urban | AK26: Short rural | AL26: Long rural | AN26: Australian Transmission Co.
B27: CitiPower | C27: CitiPower | D27: 76064651056 | E27: Vic | F27: Electricity | G27: Distribution | H27: Revenue cap | I27: Calendar | J27: December | K27: 5 | L27: 5 | M27: 2 | N27: 2016-20 Distribution Determination | O27: 40 Market Street | Q27: MELBOURNE | R27: Vic | S27: 3000 | T27: Locked Bag 14090 | V27: MELBOURNE | W27: VIC | X27: 8001 | Y27: Hannah Williams | Z27: 03 9683 4088 | AA27: hwilliams@powercor.com.au | AC27: YES | AD27: YES | AE27: NO | AF27: NO | AG27: NO | AI27: CBD | AJ27: Urban | AK27: Short rural | AL27: Long rural | AN27: CitiPower
B28: Directlink | C28: Directlink | D28: 16779340889 | E28: Qld | F28: Electricity | G28: Transmission | H28: Revenue cap | I28: Financial | J28: June | K28: 9 | L28: 5 | M28: 5 | N28: transmission determination | O28: Level 19, HSBC Building | P28: 580 George Street | Q28: SYDNEY | R28: NSW | S28: 2000 | T28: PO Box R41 | V28: ROYAL EXCHANGE | W28: NSW | X28: 1225 | Y28: Scott Young | Z28: 02 9275 0031 | AA28: scott.young@apa.com.au | AI28: CBD | AJ28: Urban | AK28: Short rural | AL28: Long rural | AN28: Directlink
B29: ElectraNet | C29: ElectraNet | D29: 41094482416 | E29: SA | F29: Electricity | G29: Transmission | H29: Revenue cap | I29: Financial | J29: June | K29: 5 | L29: 5 | M29: 5 | N29: transmission determination | O29: 52-55 East Terrace | P29: Rymill Park | Q29: ADELAIDE | R29: SA | S29: 5000 | T29: PO Box 7096 | U29: Hutt Street Post Office | V29: ADELAIDE | W29: SA | X29: 5000 | Y29: Bill Jackson | Z29: 08 8404 7969 | AA29: jackson.bill@electranet.com.au | AI29: CBD | AJ29: Urban | AK29: Short rural | AL29: Long rural | AN29: ElectraNet
B30: Endeavour Energy | C30: Endeavour Energy | D30: 11247365823 | E30: NSW | F30: Electricity | G30: Distribution | H30: Revenue cap | I30: Financial | J30: June | K30: 5 | L30: 5 | M30: 5 | N30: 2014-19 Distribution Determination | O30: 51 Huntingwood Drive | Q30: HUNTINGWOOD | R30: NSW | S30: 2148 | T30: PO Box 811 | V30: SEVEN HILLS | W30: NSW | X30: 1730 | Y30: Jon Hocking | Z30: 02 9853 4386 / 0407 348 156 | AA30: Jon.Hocking@Endeavourenergy.com.au | AC30: NO | AD30: YES | AE30: YES | AF30: YES | AG30: NO | AI30: CBD | AJ30: Urban | AK30: Short rural | AL30: Long rural | AN30: Endeavour Energy
B31: Energex | C31: Energex | D31: 40078849055 | E31: Qld | F31: Electricity | G31: Distribution | H31: Revenue cap | I31: Financial | J31: June | K31: 5 | L31: 5 | M31: 5 | N31: 2015-20 Distribution Determination | O31: 26 Reddacliff Street | Q31: NEWSTEAD | R31: Qld | S31: 4006 | T31: 26 Reddacliff Street | V31: NEWSTEAD | W31: QLD | X31: 4006 | Y31: Nicola Roscoe | Z31: 07 3664 5891 | AA31: nicolaroscoe@energex.com.au | AC31: YES | AD31: YES | AE31: YES | AF31: NO | AG31: NO | AI31: CBD | AJ31: Urban | AK31: Short rural | AL31: Long rural | AN31: Energex
B32: Ergon Energy | C32: Ergon Energy | D32: 50087646062 | E32: Qld | F32: Electricity | G32: Distribution | H32: Revenue cap | I32: Financial | J32: June | K32: 5 | L32: 5 | M32: 5 | N32: 2015-20 Distribution Determination | O32: 22 Walker Street | Q32: TOWNSVILLE | R32: Qld | S32: 4810 | T32: Po Box 264 | V32: FORTITUDE VALLEY | W32: QLD | X32: 4006 | Y32: Jenny Doyle, Group Manager Regulatory Affairs | Z32: (07) 3851 6416 | AA32: jenny.doyle@ergon.com.au | AC32: NO | AD32: YES | AE32: YES | AF32: YES | AG32: NO | AI32: CBD | AJ32: Urban | AK32: Short rural | AL32: Long rural | AN32: Ergon Energy
B33: Essential Energy | C33: Essential Energy | D33: 37428185226 | E33: NSW | F33: Electricity | G33: Distribution | H33: Revenue cap | I33: Financial | J33: June | K33: 5 | L33: 5 | M33: 5 | N33: 2014-19 Distribution Determination | O33: 8 Buller Street | Q33: PORT MACQUARIE | R33: NSW | S33: 2444 | T33: PO Box 5730 | V33: PORT MACQUARIE | W33: NSW | X33: 2444 | Y33: Catherine Waddell | Z33: 02 6338 3553 | AA33: catherine.waddell@essentialenergy.com.au | AE33: YES | AF33: YES | AG33: NO | AI33: CBD | AJ33: Urban | AK33: Short rural | AL33: Long rural | AN33: Essential Energy
B34: Jemena Electricity | C34: Jemena Electricity | D34: 82064651083 | E34: Vic | F34: Electricity | G34: Distribution | H34: Revenue cap | I34: Calendar | J34: December | K34: 5 | L34: 5 | M34: 2 | N34: 2016-20 Distribution Determination | O34: Level 16 | P34: 567 Collins Street | Q34: MELBOURNE | R34: VIC | S34: 3000 | T34: PO Box 16182 | V34: MELBOURNE | W34: VIC | X34: 8001 | Y34: Matthew Serpell | Z34: 03 9173 8231 | AA34: matthew.serpell@jemena.com.au | AE34: YES | AF34: NO | AG34: NO | AI34: CBD | AJ34: Urban | AK34: Short rural | AL34: Long rural | AN34: Jemena Electricity
B35: JGN | C35: Jemena Gas Networks (NSW) Ltd | D35: 003 004 322 | E35: NSW | F35: Gas | G35: Distribution | H35: Weighted average price cap | I35: Financial | J35: June | K35: 5 | L35: 5 | AN35: JGN
B36: Multinet Gas | C36: Multinet Gas (DB No.1) Pty Ltd (ACN 086 026 986), Multinet Gas (DB No.2) Pty Ltd (ACN 086 230 122) | D36: 086026986 | E36: Vic | F36: Gas | G36: Distribution | H36: Weighted average price cap | I36: Calendar | J36: December | K36: 5 | L36: 5 | M36: x | O36: 6 Nexus Court | Q36: MULGRAVE | R36: Vic | S36: 3149 | Y36: Stephanie McDougall | Z36: 03 8846 9538 | AA36: Stephanie.McDougall@ue.com.au | AN36: Multinet Gas
B37: Murraylink | C37: Murraylink | D37: 79181207909 | E37: SA | F37: Electricity | G37: Transmission | H37: Revenue cap | I37: Financial | J37: June | K37: 5 | L37: 5 | M37: 5 | N37: transmission determination | O37: Level 19 | P37: 580 George Street | Q37: SYDNEY | R37: NSW | S37: 2000 | Y37: Scott Young | Z37: 02 9275 0031 | AA37: scott.young@apa.com.au | AI37: CBD | AJ37: Urban | AK37: Short rural | AL37: Long rural | AN37: Murraylink
B38: Power and Water | C38: Power and Water Corporation | D38: 15947352360 | E38: NT | F38: Electricity | G38: Distribution | H38: Revenue cap | I38: Financial | J38: June | K38: 5 | L38: 5 | M38: x | N38: distribution determination | O38: GPO Box 1921 | Q38: DARWIN | R38: NT | S38: 0801 | T38: GPO Box 1921 | V38: DARWIN | W38: NT | X38: 0801 | Y38: Lucy Moon | Z38: 08 8924 5822 | AA38: Lucy.Moon@powerwater.com.au | AC38: YES | AD38: YES | AE38: YES | AF38: YES | AG38: NO
B39: Powercor Australia | C39: Powercor Australia | D39: 89064651109 | E39: Vic | F39: Electricity | G39: Distribution | H39: Revenue cap | I39: Calendar | J39: December | K39: 5 | L39: 5 | M39: 2 | N39: 2016-20 Distribution Determination | O39: 40 Market Street | Q39: MELBOURNE | R39: Vic | S39: 3000 | T39: Locked bag 14090 | V39: MELBOURNE | W39: VIC | X39: 8001 | Y39: Hannah Williams | Z39: 03 9683 4088 | AA39: hwilliams@powercor.com.au | AE39: YES | AF39: YES | AG39: NO | AI39: CBD | AJ39: Urban | AK39: Short rural | AL39: Long rural | AN39: Powercor Australia
B40: Powerlink | C40: Queensland Electricity Transmission Corporation Limited trading as Powerlink Queensland | D40: 82078849233 | E40: Qld | F40: Electricity | G40: Transmission | H40: Revenue cap | I40: Financial | J40: June | K40: 5 | L40: 5 | M40: 5 | N40: transmission determination | O40: 33 Harold St | Q40: VIRGINIA | R40: Qld | S40: 4014 | T40: PO Box 1193 | V40: VIRGINIA | W40: QLD | X40: 4014 | Y40: Jennifer Harris | Z40: 07 3860 2667 | AA40: jharris@powerlink.com.au | AI40: CBD | AJ40: Urban | AK40: Short rural | AL40: Long rural | AN40: Powerlink
B41: Roma to Brisbane Pipeline | C41: APT Petroleum Pipelines Limited t/a Roma to Brisbane Pipeline | D41: 009 737 393 | E41: Qld | F41: Gas | G41: Transmission | H41: Weighted average price cap | I41: Financial | J41: June | K41: 5 | L41: 5 | M41: x | N41: n/a | O41: 580 George Street | Q41: SYDNEY | R41: NSW | S41: 2000 | T41: PO Box R41 | V41: ROYAL EXCHANGE | W41: NSW | X41: 1225 | Y41: Mark Allen | Z41: 02 9275 0010 | AA41: mark.allen@apa.com.au | AI41: CBD | AJ41: Urban | AK41: Short rural | AL41: Long rural | AN41: Roma to Brisbane Pipeline
B42: SA Power Networks | C42: SA Power Networks | D42: 13332330749 | E42: SA | F42: Electricity | G42: Distribution | H42: Revenue cap | I42: Financial | J42: June | K42: 5 | L42: 5 | M42: 5 | N42: 2015-20 Distribution Determination | O42: 1 Anzac Highway | Q42: KESWICK | R42: SA | S42: 5035 | T42: GPO Box 77 | V42: ADELAIDE | W42: SA | X42: 5000 | Y42: Richard Sibly | Z42: 08 8404 5613 | AA42: richard.sibly@sapowernetworks.com.au | AE42: YES | AF42: YES | AG42: NO | AI42: CBD | AJ42: Urban | AK42: Short rural | AL42: Long rural | AN42: SA Power Networks
B43: TasNetworks (D) | C43: TasNetworks (D) | D43: 24167357299 | E43: Tas | F43: Electricity | G43: Distribution | H43: Revenue cap | I43: Financial | J43: June | K43: 5 | L43: 5 | M43: 5 | N43: distribution determination | O43: 1-7 Maria Street | Q43: LENAH VALLEY | R43: Tas | S43: 7008 | T43: PO Box 606 | V43: MOONAH | W43: Tas | X43: 7009 | Y43: John Sayers | Z43: 03 6271 6469 | AA43: john.sayers@tasnetworks.com.au | AE43: YES | AF43: YES | AG43: YES | AI43: Critical Infrastructure | AJ43: High density commercial | AK43: Urban | AL43: High density rural | AM43: Low density rural | AN43: TasNetworks (D)
B44: TasNetworks (T) | C44: TasNetworks (T) | D44: 24167357299 | E44: Tas | F44: Electricity | G44: Transmission | H44: Revenue cap | I44: Financial | J44: June | K44: 5 | L44: 5 | M44: 5 | N44: transmission determination | O44: 1-7 Maria Street | Q44: LENAH VALLEY | R44: Tas | S44: 7008 | T44: PO Box 606 | V44: MOONAH | W44: Tas | X44: 7009 | Y44: John Sayers | Z44: 03 6271 6469 | AA44: john.sayers@tasnetworks.com.au | AI44: CBD | AJ44: Urban | AK44: Short rural | AL44: Long rural | AN44: TasNetworks (T)
B45: TransGrid | C45: NSW Electricity Networks Operations Pty Ltd trading as TransGrid | D45: 609169959 | E45: NSW | F45: Electricity | G45: Transmission | H45: Revenue cap | I45: Financial | J45: June | K45: 5 | L45: 4 | M45: 5 | N45: transmission determination | O45: 180 Thomas Street | Q45: SYDNEY | R45: NSW | S45: 2000 | T45: PO Box A1000 | V45: SYDNEY SOUTH | W45: NSW | X45: 1235 | Y45: Garrie Chubb | Z45: 0408 210 221 | AA45: garrie.chubb@transgrid.com.au | AI45: CBD | AJ45: Urban | AK45: Short rural | AL45: Long rural | AN45: TransGrid
B46: United Energy | C46: United Energy | D46: 70064651029 | E46: Vic | F46: Electricity | G46: Distribution | H46: Revenue cap | I46: Calendar | J46: December | K46: 5 | L46: 5 | M46: 2 | N46: 2016-20 Distribution Determination | O46: Level 3 | P46: 6 Nexus Court | Q46: MULGRAVE | R46: Vic | S46: 3149 | T46: PO Box 449 | V46: MOUNT WAVERLEY | W46: VIC | X46: 3170 | Y46: Mathew Abraham | Z46: 03 8846 9758 | AA46: mathew.abraham@ue.com.au | AE46: YES | AF46: NO | AG46: NO | AI46: CBD | AJ46: Urban | AK46: Short rural | AL46: Long rural | AN46: United Energy
B47: Western Power (D) | C47: Western Power (D) | D47: 18540492861 | E47: WA | F47: Electricity | G47: Distribution | H47: Revenue cap | I47: Financial | J47: June | K47: 12 | L47: 4 | M47: x | N47: distribution determination | O47: 363 Wellington Street | Q47: PERTH | R47: WA | S47: 6000 | T47: GPO Box L921 | V47: PERTH | W47: WA | X47: 6842 | Y47: Judy Hunter | Z47: 08 9326 6239 | AA47: judy.hunter@westernpower.com.au | AE47: YES | AF47: YES | AG47: NO | AH47: NO | AI47: CBD | AJ47: Urban | AK47: Short rural | AL47: Long rural | AN47: Western Power (D)
B48: Western Power (T) | C48: Western Power (T) | D48: 18540492861 | E48: WA | F48: Electricity | G48: Transmission | H48: Revenue cap | I48: Financial | J48: June | K48: 12 | L48: 4 | M48: x | N48: transmission determination | O48: 363 Wellington Street | Q48: PERTH | R48: WA | S48: 6000 | T48: GPO Box L921 | V48: PERTH | W48: WA | X48: 6842 | Y48: Judy Hunter | Z48: 08 9326 6239 | AA48: judy.hunter@westernpower.com.au | AE48: YES | AF48: YES | AG48: NO | AI48: CBD | AJ48: Urban | AK48: Short rural | AL48: Long rural | AN48: Western Power (T)
W51: For EB & Reset RINs only | AC51: For AARs only
B52: The Reg Year Ending (dms_RYE) must be set to the last year of the regulatory period. For forecast data is is usually (FRCP_y5) for actual it is a single year (CRY). For historical actual data the RYE will need to be set manually in the business details sheet by setting the dms_Multiyear_flag to 1 and putting the correct value in 'dms_Specified_FinalYear. See cells C67:C68 | G52: =IF(dms_RPT="financial",VALUE(LEFT(CRCP_y1,4)-1)&"-"&TEXT(VALUE(RIGHT(CRCP_y1,2)-1),"00"),VALUE(LEFT(CRCP_y1,4)-1)) -> 2013-14 | N52: Drop down selector box for CA & Reset RINs. | O52: For CA & Reset RINs only | W52: for DNSP only | AC52: For DNSPs only | AI52: Reason for interruption | AJ52: dms_Reason_Interruption_Detailed | AK52: dms_Reason_Interruption
B53: dms_Model_List | C53: DELETE NR 'CRY' IF NOT AN ANNUAL RIN (EB, CA , ARR) | E53: dms_RYE_Formula_Result | N53: dms_0203_ProjectType | O53: dms_020303_01_UOM | P53: dms_020501_01_UOM | Q53: dms_020501_02_UOM | R53: dms_020501_03_UOM | S53: dms_020501_04_UOM | T53: dms_020603_01_UOM | U53: dms_040102_01_UOM | V53: dms_040102_04_UOM | W53: dms_030601_01_UOM | X53: dms_030601_02_UOM | Y53: dms_030701_01_UOM | Z53: dms_030702_01_UOM | AA53: dms_030703_01_UOM | AC53: dms_030605_UOM | AD53: dms_03060703_UOM | AI53: Animal | AJ53: Animal impact | AK53: Animal
B54: ARR | C54: ANNUAL REPORTING STATEMENT | E54: =LEFT(dms_SingleYear_FinalYear_Result,2)&RIGHT(dms_SingleYear_FinalYear_Result,2) -> 2020 | F54: =LEFT(dms_SingleYear_FinalYear_Result,2)&RIGHT(dms_SingleYear_FinalYear_Result,2) | H54: Formula errors are OK | N54: New line on new route - single circuit | O54: Circuit line length in km | P54: 0's | Q54: 0's | R54: 0's | S54: 0's | T54: 0's | U54: 0's | V54: days | W54: minutes/customer | X54: minutes/customer | Y54: Customer / km | Z54: % | AA54: km | AC54: number | AD54: number | AJ54: Animal nesting/burrowing, etc and other | AK54: Asset failure
B55: CA | C55: CATEGORY ANALYSIS | E55: =LEFT(dms_SingleYear_FinalYear_Result,2)&RIGHT(dms_SingleYear_FinalYear_Result,2) -> 2020 | F55: =LEFT(dms_SingleYear_FinalYear_Result,2)&RIGHT(dms_SingleYear_FinalYear_Result,2) | H55: Formula errors are OK | N55: New line on new route - dual circuit | O55: Circuit line length in km | P55: 0's | Q55: 0's | R55: 0's | S55: 0's | T55: 0's | U55: 0's | V55: 0's | W55: minutes/customer | X55: minutes/customer | Y55: MWh/customer | Z55: Number of spans | AC55: number | AD55: number | AJ55: Other | AK55: Other
B56: CPI | C56: CPI | N56: New line on new route - other | O56: Circuit line length in km | P56: MVA added | Q56: MVA added | R56: MVA added | S56: MVA added | T56: 0's | U56: 0's | V56: $0s | W56: interruptions/customer | X56: interruptions/customer | Y56: kVA / customer | Z56: Number of spans | AC56: number | AD56: number | AI56: Asset failure | AJ56: LV | AK56: Overloads
B57: EB | C57: ECONOMIC BENCHMARKING | E57: =LEFT(dms_SingleYear_FinalYear_Result,2)&RIGHT(dms_SingleYear_FinalYear_Result,2) -> 2020 | F57: =LEFT(dms_SingleYear_FinalYear_Result,2)&RIGHT(dms_SingleYear_FinalYear_Result,2) | H57: Formula errors are OK | N57: Line rebuild over existing route - single circuit | O57: Circuit line length in km | P57: 0's | Q57: 0's | R57: 0's | S57: 0's | T57: 0's | U57: $0s | V57: 0's | W57: interruptions/customer | X57: interruptions/customer | Z57: Number of spans | AC57: number | AD57: number | AJ57: Distribution substation | AK57: Planned
B58: PTRM | C58: POST TAX REVENUE MODEL | E58: =LEFT(dms_MultiYear_FinalYear_Result,2)&RIGHT(dms_MultiYear_FinalYear_Result,2) -> 2024 | F58: =LEFT(dms_MultiYear_FinalYear_Result,2)&RIGHT(dms_MultiYear_FinalYear_Result,2) | N58: Line rebuild over existing route - dual circuit | O58: Number | P58: total spend $0s | Q58: total spend $0s | R58: total spend $0s | S58: total spend $0s | T58: (per cent) | Z58: Number of spans | AC58: number | AD58: (per cent) | AJ58: HV | AK58: Network business
B59: Reset | C59: REGULATORY REPORTING STATEMENT | E59: =LEFT(dms_MultiYear_FinalYear_Result,2)&RIGHT(dms_MultiYear_FinalYear_Result,2) -> 2024 | F59: =LEFT(dms_MultiYear_FinalYear_Result,2)&RIGHT(dms_MultiYear_FinalYear_Result,2) | H59: Formula errors are OK | N59: Reconductor - Single circuit | O59: Number | P59: net circuit km added | Q59: net circuit km added | R59: net circuit km added | S59: net circuit km added | Z59: Years | AC59: number | AJ59: Zone substation | AK59: Third party
B60: RFM | C60: ROLL FORWARD MODEL | E60: =LEFT(dms_CRCP_FinalYear_Result,2)&RIGHT(dms_CRCP_FinalYear_Result,2) -> 2019 | F60: =LEFT(dms_CRCP_FinalYear_Result,2)&RIGHT(dms_CRCP_FinalYear_Result,2) | N60: Reconductor - Dual circuit | O60: Number | P60: total spend $0s | Q60: total spend $0s | R60: total spend $0s | S60: total spend $0s | Z60: Years | AC60: number | AJ60: Subtransmission | AK60: Unknown
B61: WACC | C61: WEIGHTED AVERAGE COST OF CAPITAL | E61: =LEFT(dms_MultiYear_FinalYear_Result,2)&RIGHT(dms_MultiYear_FinalYear_Result,2) -> 2024 | F61: =LEFT(dms_MultiYear_FinalYear_Result,2)&RIGHT(dms_MultiYear_FinalYear_Result,2) | N61: Other | P61: net circuit km added | Q61: net circuit km added | R61: net circuit km added | S61: net circuit km added | Z61: Trees | AC61: number | AI61: Other | AJ61: insert description of 'other' | AK61: Vegetation
P62: total spend $0s | Q62: total spend $0s | R62: total spend $0s | S62: total spend $0s | Z62: Trees | AC62: number | AI62: Overloads | AJ62: - | AK62: Weather
B63: dms_DataQuality_List | P63: 0's | R63: $0s | Z63: Defects | AC63: number | AI63: Planned | AJ63: - | AK63: 2 - STPIS Exclusion (3.3)(a)
B64: Actual | P64: 0's | Z64: Defects | AC64: number | AI64: Network business | AJ64: Network error | AK64: 3 - STPIS Exclusion (3.3)(a)
B65: Estimate | P65: 0's | Z65: Spans | AC65: number | AJ65: Switching and protection error | AK65: 4 - STPIS Exclusion (3.3)(a)
B66: Consolidated | P66: $0s | Z66: km | AC66: (per cent) | AI66: Third party | AJ66: Fire | AK66: 5 - STPIS Exclusion (3.3)(a)
B67: Recast | Z67: Spans | AC67: (per cent) | AJ67: Other | AK67: 6 - STPIS Exclusion (3.3)(a)
B68: Public | AJ68: Dig-in | AK68: 7 - STPIS Exclusion (3.3)(a)
AJ69: Unauthorised access
B70: For all files either AER or business needs to be able to specify the type of submission | C70: For PTRM & RFM templates we must provide a choice in case they change their form of control - otherwise it is drawn from the business specific lookup table above. | O70: For PTRM files - this field set the text for the named range "DMS_Xfactor" which in all cases is simply the text "x factors" - this saves putting in each old gas PTRM file | W70: for TNSP only | AJ70: Vehicle impact
B71: dms_SourceList | C71: dms_FormControl_Choices | O71: DMS_Xfactor | W71: dms_030601_01_UOM | Y71: dms_030701_01_UOM | Z71: dms_030702_01_UOM | AI71: Unknown | AJ71: Unknown
B72: After appeal | C72: Revenue cap | O72: x factors | W72: % | Y72: Number of spans | Z72: km | AI72: Vegetation | AJ72: Blow-in/Fall-in - NSP responsibility
B73: Draft decision | C73: Revenue yield | W73: number | Y73: Years | Z73: % | AJ73: Grow-in - NSP responsibility
B74: Final decision | C74: Weighted average price cap | W74: number | Y74: Trees | Z74: km | AJ74: Blow-in/Fall-in - Other responsible party
B75: PTRM update 1 | W75: % | Y75: Defects | Z75: number | AJ75: Grow-in - Other responsible party
B76: PTRM update 2 | W76: number | Y76: Number of spans | AI76: Weather
B77: PTRM update 3 | W77: number | Y77: km | AI77: 2 - STPIS Exclusion (3.3)(a)
B78: PTRM update 4 | W78: % | Y78: km | AI78: 3 - STPIS Exclusion (3.3)(a)
B79: PTRM update 5 | W79: number | Y79: Number of spans | AI79: 4 - STPIS Exclusion (3.3)(a)
B80: PTRM update 6 | W80: number | AI80: 5 - STPIS Exclusion (3.3)(a)
B81: PTRM update 7 | W81: % | AI81: 6 - STPIS Exclusion (3.3)(a)
B82: Regulatory proposal | W82: number | AI82: 7 - STPIS Exclusion (3.3)(a)
B83: Reporting | W83: %
B84: Revised regulatory proposal | W84: number
W85: %
W86: number
B90: These are indeces and lookup values for various dates. All step from the value placed in FRCP_y1 on the business and other details worksheet | L90: These date tables are currently used in the Recast templates to provide column headings and conditional formatting
B91: dms_FRCPlength_Num_List | C91: dms_FinalYear_List | D91: dms_CRCPlength_Num_List | E91: dms_CFinalYear_List | F91: dms_FRCP_years | H91: dms_CRCP_years | J91: dms_CRCP_index | L91: CRY from input cell on business sheet | M91: CRY - financial | N91: dms_FinYears | O91: CRY calendar | P91: dms_CalYears
B92: 1 | C92: dms_FRCP_y1 | D92: 1 | E92: CRCP_y1 | F92: =FRCP_y1 -> 2019-20 | G92: dms_FRCP_y1 | H92: =IF(dms_RPT="financial",VALUE(LEFT(dms_FRCP_y1,4)-1)&"-"&TEXT(VALUE(MID(dms_FRCP_y1,3,2)),"00"),VALUE(LEFT(dms_FRCP_y1,4)-1)) -> 2018-19 | I92: dms_CRCP_yZ | J92: 1 | L92: =CRY -> 2019-20 | M92: =VALUE(LEFT(CRY,4))&"-"&TEXT(MID(CRY,3,2)+1,"00") -> 2019-20 | N92: dms_CRYf_y1 | O92: =VALUE(LEFT(CRY,4)+1) -> 2020 | P92: dms_CRYc_y1
B93: 2 | C93: dms_FRCP_y2 | D93: 2 | E93: CRCP_y2 | F93: =IF(dms_RPT="financial",VALUE(LEFT(dms_FRCP_y1,4)+1)&"-"&TEXT(VALUE(RIGHT(dms_FRCP_y1,2)+1),"00"),VALUE(LEFT(dms_FRCP_y1,4)+1)) -> 2020-21 | G93: dms_FRCP_y2 | H93: =IF(dms_RPT="financial",VALUE(LEFT(dms_CRCP_yZ,4)-1)&"-"&TEXT(VALUE(MID(dms_CRCP_yZ,3,2)),"00"),VALUE(LEFT(dms_CRCP_yZ,4)-1)) -> 2017-18 | I93: dms_CRCP_yY | J93: 2 | M93: =VALUE(LEFT(dms_CRYf_y1,4)+1)&"-"&TEXT(MID(dms_CRYf_y1,3,2)+2,"00") -> 2020-21 | N93: dms_CRYf_y2 | O93: =VALUE(LEFT(dms_CRYc_y1,4)+1) -> 2021 | P93: dms_CRYc_y2
B94: 3 | C94: dms_FRCP_y3 | D94: 3 | E94: CRCP_y3 | F94: =IF(dms_RPT="financial",VALUE(LEFT(dms_FRCP_y2,4)+1)&"-"&TEXT(VALUE(RIGHT(dms_FRCP_y2,2)+1),"00"),VALUE(LEFT(dms_FRCP_y2,4)+1)) -> 2021-22 | G94: dms_FRCP_y3 | H94: =IF(dms_RPT="financial",VALUE(LEFT(dms_CRCP_yY,4)-1)&"-"&TEXT(VALUE(MID(dms_CRCP_yY,3,2)),"00"),VALUE(LEFT(dms_CRCP_yY,4)-1)) -> 2016-17 | I94: dms_CRCP_yX | J94: 3 | M94: =VALUE(LEFT(dms_CRYf_y2,4)+1)&"-"&TEXT(MID(dms_CRYf_y2,3,2)+2,"00") -> 2021-22 | N94: dms_CRYf_y3 | O94: =VALUE(LEFT(dms_CRYc_y2,4)+1) -> 2022 | P94: dms_CRYc_y3
B95: 4 | C95: dms_FRCP_y4 | D95: 4 | E95: CRCP_y4 | F95: =IF(dms_RPT="financial",VALUE(LEFT(dms_FRCP_y3,4)+1)&"-"&TEXT(VALUE(RIGHT(dms_FRCP_y3,2)+1),"00"),VALUE(LEFT(dms_FRCP_y3,4)+1)) -> 2022-23 | G95: dms_FRCP_y4 | H95: =IF(dms_RPT="financial",VALUE(LEFT(dms_CRCP_yX,4)-1)&"-"&TEXT(VALUE(MID(dms_CRCP_yX,3,2)),"00"),VALUE(LEFT(dms_CRCP_yX,4)-1)) -> 2015-16 | I95: dms_CRCP_yW | J95: 4 | M95: =VALUE(LEFT(dms_CRYf_y3,4)+1)&"-"&TEXT(MID(dms_CRYf_y3,3,2)+2,"00") -> 2022-23 | N95: dms_CRYf_y4 | O95: =VALUE(LEFT(dms_CRYc_y3,4)+1) -> 2023 | P95: dms_CRYc_y4
B96: 5 | C96: dms_FRCP_y5 | D96: 5 | E96: CRCP_y5 | F96: =IF(dms_RPT="financial",VALUE(LEFT(dms_FRCP_y4,4)+1)&"-"&TEXT(VALUE(RIGHT(dms_FRCP_y4,2)+1),"00"),VALUE(LEFT(dms_FRCP_y4,4)+1)) -> 2023-24 | G96: dms_FRCP_y5 | H96: =IF(dms_RPT="financial",VALUE(LEFT(dms_CRCP_yW,4)-1)&"-"&TEXT(VALUE(MID(dms_CRCP_yW,3,2)),"00"),VALUE(LEFT(dms_CRCP_yW,4)-1)) -> 2014-15 | I96: dms_CRCP_yV | J96: 5 | M96: =VALUE(LEFT(dms_CRYf_y4,4)+1)&"-"&TEXT(MID(dms_CRYf_y4,3,2)+2,"00") -> 2023-24 | N96: dms_CRYf_y5 | O96: =VALUE(LEFT(dms_CRYc_y4,4)+1) -> 2024 | P96: dms_CRYc_y5
B97: 6 | C97: dms_FRCP_y6 | D97: 6 | E97: CRCP_y6 | F97: =IF(dms_RPT="financial",VALUE(LEFT(dms_FRCP_y5,4)+1)&"-"&TEXT(VALUE(RIGHT(dms_FRCP_y5,2)+1),"00"),VALUE(LEFT(dms_FRCP_y5,4)+1)) -> 2024-25 | G97: dms_FRCP_y6 | H97: =IF(dms_RPT="financial",VALUE(LEFT(dms_CRCP_yV,4)-1)&"-"&TEXT(VALUE(MID(dms_CRCP_yV,3,2)),"00"),VALUE(LEFT(dms_CRCP_yV,4)-1)) -> 2013-14 | I97: dms_CRCP_yU | J97: 6 | M97: =VALUE(LEFT(dms_CRYf_y5,4)+1)&"-"&TEXT(MID(dms_CRYf_y5,3,2)+2,"00") -> 2024-25 | N97: dms_CRYf_y6 | O97: =VALUE(LEFT(dms_CRYc_y5,4)+1) -> 2025 | P97: dms_CRYc_y6
B98: 7 | C98: dms_FRCP_y7 | D98: 7 | E98: CRCP_y7 | F98: =IF(dms_RPT="financial",VALUE(LEFT(dms_FRCP_y6,4)+1)&"-"&TEXT(VALUE(RIGHT(dms_FRCP_y6,2)+1),"00"),VALUE(LEFT(dms_FRCP_y6,4)+1)) -> 2025-26 | G98: dms_FRCP_y7 | H98: =IF(dms_RPT="financial",VALUE(LEFT(dms_CRCP_yU,4)-1)&"-"&TEXT(VALUE(MID(dms_CRCP_yU,3,2)),"00"),VALUE(LEFT(dms_CRCP_yU,4)-1)) -> 2012-13 | I98: dms_CRCP_yT | J98: 7 | M98: =VALUE(LEFT(dms_CRYf_y6,4)+1)&"-"&TEXT(MID(dms_CRYf_y6,3,2)+2,"00") -> 2025-26 | N98: dms_CRYf_y7 | O98: =VALUE(LEFT(dms_CRYc_y6,4)+1) -> 2026 | P98: dms_CRYc_y7
B99: 8 | C99: dms_FRCP_y8 | D99: 8 | E99: CRCP_y8 | F99: =IF(dms_RPT="financial",VALUE(LEFT(dms_FRCP_y7,4)+1)&"-"&TEXT(VALUE(RIGHT(dms_FRCP_y7,2)+1),"00"),VALUE(LEFT(dms_FRCP_y7,4)+1)) -> 2026-27 | G99: dms_FRCP_y8 | H99: =IF(dms_RPT="financial",VALUE(LEFT(dms_CRCP_yT,4)-1)&"-"&TEXT(VALUE(MID(dms_CRCP_yT,3,2)),"00"),VALUE(LEFT(dms_CRCP_yT,4)-1)) -> 2011-12 | I99: dms_CRCP_yS | J99: 8 | M99: =VALUE(LEFT(dms_CRYf_y7,4)+1)&"-"&TEXT(MID(dms_CRYf_y7,3,2)+2,"00") -> 2026-27 | N99: dms_CRYf_y8 | O99: =VALUE(LEFT(dms_CRYc_y7,4)+1) -> 2027 | P99: dms_CRYc_y8
B100: 9 | C100: dms_FRCP_y9 | D100: 9 | E100: CRCP_y9 | F100: =IF(dms_RPT="financial",VALUE(LEFT(dms_FRCP_y8,4)+1)&"-"&TEXT(VALUE(RIGHT(dms_FRCP_y8,2)+1),"00"),VALUE(LEFT(dms_FRCP_y8,4)+1)) -> 2027-28 | G100: dms_FRCP_y9 | H100: =IF(dms_RPT="financial",VALUE(LEFT(dms_CRCP_yS,4)-1)&"-"&TEXT(VALUE(MID(dms_CRCP_yS,3,2)),"00"),VALUE(LEFT(dms_CRCP_yS,4)-1)) -> 2010-11 | I100: dms_CRCP_yR | J100: 9 | M100: =VALUE(LEFT(dms_CRYf_y8,4)+1)&"-"&TEXT(MID(dms_CRYf_y8,3,2)+2,"00") -> 2027-28 | N100: dms_CRYf_y9 | O100: =VALUE(LEFT(dms_CRYc_y8,4)+1) -> 2028 | P100: dms_CRYc_y9
B101: 10 | C101: dms_FRCP_y10 | D101: 10 | E101: CRCP_y10 | F101: =IF(dms_RPT="financial",VALUE(LEFT(dms_FRCP_y9,4)+1)&"-"&TEXT(VALUE(RIGHT(dms_FRCP_y9,2)+1),"00"),VALUE(LEFT(dms_FRCP_y9,4)+1)) -> 2028-29 | G101: dms_FRCP_y10 | H101: =IF(dms_RPT="financial",VALUE(LEFT(dms_CRCP_yR,4)-1)&"-"&TEXT(VALUE(MID(dms_CRCP_yR,3,2)),"00"),VALUE(LEFT(dms_CRCP_yR,4)-1)) -> 2009-10 | I101: dms_CRCP_yQ | J101: 10 | M101: =VALUE(LEFT(dms_CRYf_y9,4)+1)&"-"&TEXT(MID(dms_CRYf_y9,3,2)+2,"00") -> 2028-29 | N101: dms_CRYf_y10 | O101: =VALUE(LEFT(dms_CRYc_y9,4)+1) -> 2029 | P101: dms_CRYc_y10
B102: 11 | C102: dms_FRCP_y11 | D102: 11 | E102: CRCP_y11 | F102: =IF(dms_RPT="financial",VALUE(LEFT(dms_FRCP_y10,4)+1)&"-"&TEXT(VALUE(RIGHT(dms_FRCP_y10,2)+1),"00"),VALUE(LEFT(dms_FRCP_y10,4)+1)) -> 2029-30 | G102: dms_FRCP_y11 | H102: =IF(dms_RPT="financial",VALUE(LEFT(dms_CRCP_yQ,4)-1)&"-"&TEXT(VALUE(MID(dms_CRCP_yQ,3,2)),"00"),VALUE(LEFT(dms_CRCP_yQ,4)-1)) -> 2008-09 | I102: dms_CRCP_yP | J102: 11 | M102: =VALUE(LEFT(dms_CRYf_y10,4)+1)&"-"&TEXT(MID(dms_CRYf_y10,3,2)+2,"00") -> 2029-30 | N102: dms_CRYf_y11 | O102: =VALUE(LEFT(dms_CRYc_y10,4)+1) -> 2030 | P102: dms_CRYc_y11
B103: 12 | C103: dms_FRCP_y12 | D103: 12 | E103: CRCP_y12 | F103: =IF(dms_RPT="financial",VALUE(LEFT(dms_FRCP_y11,4)+1)&"-"&TEXT(VALUE(RIGHT(dms_FRCP_y11,2)+1),"00"),VALUE(LEFT(dms_FRCP_y11,4)+1)) -> 2030-31 | G103: dms_FRCP_y12 | H103: =IF(dms_RPT="financial",VALUE(LEFT(dms_CRCP_yP,4)-1)&"-"&TEXT(VALUE(MID(dms_CRCP_yP,3,2)),"00"),VALUE(LEFT(dms_CRCP_yP,4)-1)) -> 2007-08 | I103: dms_CRCP_yO | J103: 12 | M103: =VALUE(LEFT(dms_CRYf_y11,4)+1)&"-"&TEXT(MID(dms_CRYf_y11,3,2)+2,"00") -> 2030-31 | N103: dms_CRYf_y12 | O103: =VALUE(LEFT(dms_CRYc_y11,4)+1) -> 2031 | P103: dms_CRYc_y12
B104: 13 | C104: dms_FRCP_y13 | D104: 13 | E104: CRCP_y13 | F104: =IF(dms_RPT="financial",VALUE(LEFT(dms_FRCP_y12,4)+1)&"-"&TEXT(VALUE(RIGHT(dms_FRCP_y12,2)+1),"00"),VALUE(LEFT(dms_FRCP_y12,4)+1)) -> 2031-32 | G104: dms_FRCP_y13 | H104: =IF(dms_RPT="financial",VALUE(LEFT(dms_CRCP_yO,4)-1)&"-"&TEXT(VALUE(MID(dms_CRCP_yO,3,2)),"00"),VALUE(LEFT(dms_CRCP_yO,4)-1)) -> 2006-07 | I104: dms_CRCP_yN | J104: 13 | M104: =VALUE(LEFT(dms_CRYf_y12,4)+1)&"-"&TEXT(MID(dms_CRYf_y12,3,2)+2,"00") -> 2031-32 | N104: dms_CRYf_y13 | O104: =VALUE(LEFT(dms_CRYc_y12,4)+1) -> 2032 | P104: dms_CRYc_y13
B105: 14 | C105: dms_FRCP_y14 | D105: 14 | E105: CRCP_y14 | F105: =IF(dms_RPT="financial",VALUE(LEFT(dms_FRCP_y13,4)+1)&"-"&TEXT(VALUE(RIGHT(dms_FRCP_y13,2)+1),"00"),VALUE(LEFT(dms_FRCP_y13,4)+1)) -> 2032-33 | G105: dms_FRCP_y14 | H105: =IF(dms_RPT="financial",VALUE(LEFT(dms_CRCP_yN,4)-1)&"-"&TEXT(VALUE(MID(dms_CRCP_yN,3,2)),"00"),VALUE(LEFT(dms_CRCP_yN,4)-1)) -> 2005-06 | I105: dms_CRCP_yM | J105: 14 | M105: =VALUE(LEFT(dms_CRYf_y13,4)+1)&"-"&TEXT(MID(dms_CRYf_y13,3,2)+2,"00") -> 2032-33 | N105: dms_CRYf_y14 | O105: =VALUE(LEFT(dms_CRYc_y13,4)+1) -> 2033 | P105: dms_CRYc_y14
B106: 15 | C106: dms_FRCP_y15 | D106: 15 | E106: CRCP_y15 | F106: =IF(dms_RPT="financial",VALUE(LEFT(dms_FRCP_y14,4)+1)&"-"&TEXT(VALUE(RIGHT(dms_FRCP_y14,2)+1),"00"),VALUE(LEFT(dms_FRCP_y14,4)+1)) -> 2033-34 | G106: dms_FRCP_y15 | H106: =IF(dms_RPT="financial",VALUE(LEFT(dms_CRCP_yM,4)-1)&"-"&TEXT(VALUE(MID(dms_CRCP_yM,3,2)),"00"),VALUE(LEFT(dms_CRCP_yM,4)-1)) -> 2004-05 | I106: dms_CRCP_yL | J106: 15 | M106: =VALUE(LEFT(dms_CRYf_y14,4)+1)&"-"&TEXT(MID(dms_CRYf_y14,3,2)+2,"00") -> 2033-34 | N106: dms_CRYf_y15 | O106: =VALUE(LEFT(dms_CRYc_y14,4)+1) -> 2034 | P106: dms_CRYc_y15
M107: =VALUE(LEFT(dms_CRYf_y15,4)+1)&"-"&TEXT(MID(dms_CRYf_y15,3,2)+2,"00") -> 2034-35 | N107: dms_CRYf_y16 | O107: =VALUE(LEFT(dms_CRYc_y15,4)+1) -> 2035 | P107: dms_CRYc_y16
B108: These are drop down lists for businesses to select the correct FRCP_y1 on the business and other details worksheet. This also populates the column headings in the worksheets | M108: =VALUE(LEFT(dms_CRYf_y16,4)+1)&"-"&TEXT(MID(dms_CRYf_y16,3,2)+2,"00") -> 2035-36 | N108: dms_CRYf_y17 | O108: =VALUE(LEFT(dms_CRYc_y16,4)+1) -> 2036 | P108: dms_CRYc_y17
B109: dms_RCP_fyear_list | C109: dms_CRY_ListF | D109: dms_CRY_ListC | E109: dms_RCP_cyear_list | F109: dms_FRCP_fyear_list | G109: dms_FRCP_ListF | H109: dms_FRCP_ListC | I109: dms_FRCP_cyear_list | M109: =VALUE(LEFT(dms_CRYf_y17,4)+1)&"-"&TEXT(MID(dms_CRYf_y17,3,2)+2,"00") -> 2036-37 | N109: dms_CRYf_y18 | O109: =VALUE(LEFT(dms_CRYc_y17,4)+1) -> 2037 | P109: dms_CRYc_y18
B110: dms_fy1 | C110: 2006-07 | D110: 2007 | E110: dms_cy1 | F110: dms_frcp_fy1 | G110: 2015-16 | H110: 2016 | I110: dms_crcp_cy1 | M110: =VALUE(LEFT(dms_CRYf_y18,4)+1)&"-"&TEXT(MID(dms_CRYf_y18,3,2)+2,"00") -> 2037-38 | N110: dms_CRYf_y19 | O110: =VALUE(LEFT(dms_CRYc_y18,4)+1) -> 2038 | P110: dms_CRYc_y19
B111: dms_fy2 | C111: 2007-08 | D111: 2008 | E111: dms_cy2 | F111: dms_frcp_fy2 | G111: 2016-17 | H111: 2017 | I111: dms_crcp_cy2 | M111: =VALUE(LEFT(dms_CRYf_y19,4)+1)&"-"&TEXT(MID(dms_CRYf_y19,3,2)+2,"00") -> 2038-39 | N111: dms_CRYf_y20 | O111: =VALUE(LEFT(dms_CRYc_y19,4)+1) -> 2039 | P111: dms_CRYc_y20
B112: dms_fy3 | C112: 2008-09 | D112: 2009 | E112: dms_cy3 | F112: dms_frcp_fy3 | G112: 2017-18 | H112: 2018 | I112: dms_crcp_cy3
B113: dms_fy4 | C113: 2009-10 | D113: 2010 | E113: dms_cy4 | F113: dms_frcp_fy4 | G113: 2018-19 | H113: 2019 | I113: dms_crcp_cy4
B114: dms_fy5 | C114: 2010-11 | D114: 2011 | E114: dms_cy5 | F114: dms_frcp_fy5 | G114: 2019-20 | H114: 2020 | I114: dms_crcp_cy5
B115: dms_fy6 | C115: 2011-12 | D115: 2012 | E115: dms_cy6 | F115: dms_frcp_fy6 | G115: 2020-21 | H115: 2021 | I115: dms_crcp_cy6
B116: dms_fy7 | C116: 2012-13 | D116: 2013 | E116: dms_cy7 | F116: dms_frcp_fy7 | G116: 2021-22 | H116: 2022 | I116: dms_crcp_cy7
B117: dms_fy8 | C117: 2013-14 | D117: 2014 | E117: dms_cy8 | F117: dms_frcp_fy8 | G117: 2022-23 | H117: 2023 | I117: dms_crcp_cy8 | L117: 2005-06 | M117: 2006
B118: dms_fy9 | C118: 2014-15 | D118: 2015 | E118: dms_cy9 | F118: dms_frcp_fy9 | G118: 2023-24 | H118: 2024 | I118: dms_crcp_cy9 | L118: 2006-07 | M118: 2007
B119: dms_fy10 | C119: 2015-16 | D119: 2016 | E119: dms_cy10 | F119: dms_frcp_fy10 | G119: 2024-25 | H119: 2025 | I119: dms_crcp_cy10 | L119: 2007-08 | M119: 2008
B120: dms_fy11 | C120: 2016-17 | D120: 2017 | E120: dms_cy11 | F120: dms_frcp_fy11 | G120: 2025-26 | H120: 2026 | I120: dms_crcp_cy11 | L120: 2008-09 | M120: 2009
B121: dms_fy12 | C121: 2017-18 | D121: 2018 | E121: dms_cy12 | F121: dms_frcp_fy12 | G121: 2026-27 | H121: 2027 | I121: dms_crcp_cy12 | L121: 2009-10 | M121: 2010
B122: dms_fy13 | C122: 2018-19 | D122: 2019 | E122: dms_cy13 | F122: dms_frcp_fy13 | G122: 2027-28 | H122: 2028 | I122: dms_crcp_cy13 | L122: 2010-11 | M122: 2011
B123: dms_fy14 | C123: 2019-20 | D123: 2020 | E123: dms_cy14 | F123: dms_frcp_fy14 | G123: 2028-29 | H123: 2029 | I123: dms_crcp_cy14 | L123: 2011-12 | M123: 2012
B124: dms_fy15 | C124: 2019-20 | D124: 2020 | E124: dms_cy15 | F124: dms_frcp_fy15 | G124: 2029-30 | H124: 2030 | I124: dms_crcp_cy15 | L124: 2012-13 | M124: 2013
B125: dms_fy16 | C125: 2020-21 | D125: 2021 | E125: dms_cy16 | L125: 2013-14 | M125: 2014
B126: dms_fy17 | C126: 2021-22 | D126: 2022 | E126: dms_cy17 | L126: 2014-15 | M126: 2015
B127: dms_fy18 | C127: 2022-23 | D127: 2023 | E127: dms_cy18 | L127: 2015-16 | M127: 2016
B128: dms_fy19 | C128: 2023-24 | D128: 2024 | E128: dms_cy19 | L128: 2016-17 | M128: 2017
B129: dms_fy20 | C129: 2024-25 | D129: 2025 | E129: dms_cy20 | L129: 2017-18 | M129: 2018
L130: 2018-19 | M130: 2019
L131: 2019-20 | M131: 2020
L132: 2020-21 | M132: 2021
L133: 2021-22 | M133: 2022
L134: 2022-23 | M134: 2023
L135: 2023-24 | M135: 2024
L136: 2024-25 | M136: 2025
L137: 2025-26 | M137: 2026
L138: 2026-27 | M138: 2027
L139: 2027-28 | M139: 2028
L140: 2028-29 | M140: 2029
L141: 2029-30 | M141: 2030
L142: 2030-31 | M142: 2031
L143: 2031-32 | M143: 2032
L144: 2032-33 | M144: 2033
L145: 2033-34 | M145: 2034
L146: 2034-35 | M146: 2035
L147: 2035-36 | M147: 2036

Sheet Business & other details
B1: =IF(dms_DataQuality="backcast",INDEX(dms_Worksheet_List,MATCH(dms_Model,dms_Model_List))&" BACKCAST",INDEX(dms_Worksheet_List,MATCH(dms_Model,dms_Model_List))) -> REGULATORY REPORTING STATEMENT
B2: =INDEX(dms_TradingNameFull_List,MATCH(dms_TradingName,dms_TradingName_List)) -> Essential Energy
B3: =IF(SUM(dms_SingleYear_Model)>0,CONCATENATE(CRY," to ",FRY),CONCATENATE(FRCP_y1," to ",dms_MultiYear_FinalYear_Result)) -> 2019-20 to 2023-24
B4: BUSINESS & OTHER DETAILS
B7: Instructions
B8: Complete the following business details regulatory template before entering data or values in any other regulatory template. This regulatory template is linked to other cells within the spreadsheet and automatically generates column headings and conditional formatting to distinguish business specific input and non-input cells.
B10: SUBMISSION PARTICULARS INPUT SHEETS
B12: ENTITY DETAILS
B14: Short name | C14: Essential Energy | F14: Select business name from drop down list first
B15: ACN / ABN | C15: =INDEX(dms_ABN_List,MATCH(dms_TradingName,dms_TradingName_List)) -> 37428185226
B18: Business address | C18: Address 1 | E18: =INDEX(dms_Addr1_List,MATCH(dms_TradingName,dms_TradingName_List)) -> 8 Buller Street
D19: Address 2 | E19: =IF(ISBLANK(INDEX(dms_Addr2_List,MATCH(dms_TradingName,dms_TradingName_List))),"",INDEX(dms_Addr2_List,MATCH(dms_TradingName,dms_TradingName_List))) -> 
C20: Suburb | E20: =INDEX(dms_Suburb_List,MATCH(dms_TradingName,dms_TradingName_List)) -> PORT MACQUARIE
D21: State | E21: =INDEX(dms_State_List,MATCH(dms_TradingName,dms_TradingName_List)) -> NSW | F21: p/code | G21: =INDEX(dms_PostCode_List,MATCH(dms_TradingName,dms_TradingName_List)) -> 2444
B23: Postal address | C23: Address 1 | E23: =INDEX(dms_PAddr1_List,MATCH(dms_TradingName,dms_TradingName_List)) -> PO Box 5730
D24: Address 2 | E24: =IF(ISBLANK(INDEX(dms_PAddr2_List,MATCH(dms_TradingName,dms_TradingName_List))),"",INDEX(dms_PAddr2_List,MATCH(dms_TradingName,dms_TradingName_List))) -> 
C25: Suburb | E25: =INDEX(dms_PSuburb_List,MATCH(dms_TradingName,dms_TradingName_List)) -> PORT MACQUARIE
D26: State | E26: =INDEX(dms_PState_List,MATCH(dms_TradingName,dms_TradingName_List)) -> NSW | F26: p/code | G26: =INDEX(dms_PPostCode_List,MATCH(dms_TradingName,dms_TradingName_List)) -> 2444
B29: Contact name/s | C29: Natalie Lindsay
B30: Contact phone/s | C30: 02 6589 8419
B31: Contact email address/s | C31: natalie.lindsay@essentialenergy.com.au
B33: REGULATORY CONTROL PERIODS
B35: Forthcoming regulatory control period | C35: 2019-20 | D35: =dms_FRCP_y2 -> 2020-21 | E35: =dms_FRCP_y3 -> 2021-22 | F35: =dms_FRCP_y4 -> 2022-23 | G35: =dms_FRCP_y5 -> 2023-24 | H35: =dms_FRCP_y6 -> 2024-25 | I35: =dms_FRCP_y7 -> 2025-26 | J35: =dms_FRCP_y8 -> 2026-27 | K35: =dms_FRCP_y9 -> 2027-28 | L35: =dms_FRCP_y10 -> 2028-29
B38: Current regulatory control period | C38: =dms_CRCP_FirstYear_Result -> 2014-15 | D38: =IF(dms_RPT="financial",VALUE(LEFT(CRCP_y1,4)+1)&"-"&TEXT(MID(CRCP_y1,3,2)+2,"00"),VALUE(LEFT(CRCP_y1,4)+1)) -> 2015-16 | E38: =IF(dms_RPT="financial",VALUE(LEFT(CRCP_y2,4)+1)&"-"&TEXT(VALUE(MID(CRCP_y2,3,2)+2),"00"),VALUE(LEFT(CRCP_y2,4)+1)) -> 2016-17 | F38: =IF(dms_RPT="financial",VALUE(LEFT(CRCP_y3,4)+1)&"-"&TEXT(VALUE(MID(CRCP_y3,3,2)+2),"00"),VALUE(LEFT(CRCP_y3,4)+1)) -> 2017-18 | G38: =IF(dms_RPT="financial",VALUE(LEFT(CRCP_y4,4)+1)&"-"&TEXT(VALUE(MID(CRCP_y4,3,2)+2),"00"),VALUE(LEFT(CRCP_y4,4)+1)) -> 2018-19 | H38: =IF(dms_RPT="financial",VALUE(LEFT(CRCP_y5,4)+1)&"-"&TEXT(VALUE(MID(CRCP_y5,3,2)+2),"00"),VALUE(LEFT(CRCP_y5,4)+1)) -> 2019-20 | I38: =IF(dms_RPT="financial",VALUE(LEFT(CRCP_y6,4)+1)&"-"&TEXT(VALUE(MID(CRCP_y6,3,2)+2),"00"),VALUE(LEFT(CRCP_y6,4)+1)) -> 2020-21 | J38: =IF(dms_RPT="financial",VALUE(LEFT(CRCP_y7,4)+1)&"-"&TEXT(VALUE(MID(CRCP_y7,3,2)+2),"00"),VALUE(LEFT(CRCP_y7,4)+1)) -> 2021-22 | K38: =IF(dms_RPT="financial",VALUE(LEFT(CRCP_y8,4)+1)&"-"&TEXT(VALUE(MID(CRCP_y8,3,2)+2),"00"),VALUE(LEFT(CRCP_y8,4)+1)) -> 2022-23 | L38: =IF(dms_RPT="financial",VALUE(LEFT(CRCP_y9,4)+1)&"-"&TEXT(VALUE(MID(CRCP_y9,3,2)+2),"00"),VALUE(LEFT(CRCP_y9,4)+1)) -> 2023-24
B41: Previous regulatory control period | C41: =IF(dms_RPT="financial",VALUE(LEFT(PRCP_y2,4)-1)&"-"&TEXT(VALUE(MID(PRCP_y2,3,2)),"00"),VALUE(LEFT(PRCP_y2,4)-1)) -> 2009-10 | D41: =IF(dms_RPT="financial",VALUE(LEFT(PRCP_y3,4)-1)&"-"&TEXT(VALUE(MID(PRCP_y3,3,2)),"00"),VALUE(LEFT(PRCP_y3,4)-1)) -> 2010-11 | E41: =IF(dms_RPT="financial",VALUE(LEFT(PRCP_y4,4)-1)&"-"&TEXT(VALUE(MID(PRCP_y4,3,2)),"00"),VALUE(LEFT(PRCP_y4,4)-1)) -> 2011-12 | F41: =IF(dms_RPT="financial",VALUE(LEFT(PRCP_y5,4)-1)&"-"&TEXT(VALUE(RIGHT(PRCP_y5,2)-1),"00"),VALUE(LEFT(PRCP_y5,4)-1)) -> 2012-13 | G41: =IF(dms_RPT="financial",VALUE(LEFT(CRCP_y1,4)-1)&"-"&TEXT(VALUE(RIGHT(CRCP_y1,2)-1),"00"),VALUE(LEFT(CRCP_y1,4)-1)) -> 2013-14
B44: Commencing regulatory year | C44: 2019-20 | D44: CRY
B46: Last completed regulatory year | C46: 2023-24 | D46: dms_FinalYear
C49: DELETE NR 'CRY' IF NOT AN ANNUAL RIN (EB, CA , ARR)
C50: APPLY NR 'CRY' IF AN ANNUAL RIN (EB, CA , ARR) - including multi year annual RINs eg. Recast CA. EB
B52: Source | C52: Regulatory proposal | E52: Please select the correct submission type from the dropdown list.
B53: Data quality (actual, estimate, public, consolidated) | C53: Consolidated
B54: Amended RIN submission - amendment reason
B55: Submission Date | C55: dd/mm/yyyy | D55: dms_SubmissionDate | E55: Please enter date this file submitted to AER (dd/mm/yyyy)
B56: EBSS - First application of scheme in forthcoming period? | C56: No
B57: Sector | C57: =INDEX(dms_Sector_List,MATCH(dms_TradingName,dms_TradingName_List)) -> Electricity | D57: dms_Sector | E57: =INDEX(dms_Sector_List,MATCH(dms_TradingName,dms_TradingName_List))
B58: Segment | C58: =INDEX(dms_Segment_List,MATCH(dms_TradingName,dms_TradingName_List)) -> Distribution | D58: dms_Segment | E58: =INDEX(dms_Segment_List,MATCH(dms_TradingName,dms_TradingName_List))
B59: Regulatory Year Ending | C59: =IF(dms_MultiYear_Flag=1,LEFT(dms_Specified_FinalYear,2)&RIGHT(dms_Specified_FinalYear,2),INDEX(dms_RYE_Formula_Result,MATCH(dms_Model,dms_Model_List))) -> 2024 | D59: dms_RYE | E59: =IF(dms_MultiYear_Flag=1,LEFT(dms_Specified_FinalYear,2)&RIGHT(dms_Specified_FinalYear,2),INDEX(dms_RYE_Formula_Result,MATCH(dms_Model,dms_Model_List)))
B60: Reporting Period Type | C60: =INDEX(dms_RPT_List,MATCH(dms_TradingName,dms_TradingName_List)) -> Financial | D60: dms_RPT | E60: =INDEX(dms_RPT_List,MATCH(dms_TradingName,dms_TradingName_List))
B61: Model or RIN Type | C61: Reset | D61: dms_Model | E61: Drop down selection
B62: Security Classification | C62: Public | D62: dms_Classification | E62: Always Public
B63: Template - version no. | C63: 5 | D63: dms_TemplateNumber
B64: Dollar $ real month | C64: =INDEX(dms_RPTMonth_List,MATCH(dms_TradingName,dms_TradingName_List)) -> June | D64: dms_RPTMonth | E64: =INDEX(dms_RPTMonth_List,MATCH(dms_TradingName,dms_TradingName_List))
B65: Dollar $ real (the last month before the FRCP_y1) | C65: =CONCATENATE(dms_RPTMonth)&" "&VALUE((LEFT(dms_CRCP_FinalYear_Result,2)&RIGHT(dms_CRCP_FinalYear_Result,2))) -> June 2019 | D65: dms_DollarReal | E65: =IF(SUM(dms_SingleYear_Model)>0,CONCATENATE(dms_RPTMonth)&" "&VALUE((LEFT(CRY,2))&RIGHT(CRY,2)),CONCATENATE(dms_RPTMonth)&" "&VALUE((LEFT(dms_CRCP_FinalYear_Result,2)&RIGHT(dms_CRCP_FinalYear_Result,2))))
B66: Form of control | C66: =INDEX(dms_FormControl_List,MATCH(dms_TradingName,dms_TradingName_List)) -> Revenue cap | D66: dms_FormControl | E66: =INDEX(dms_FormControl_List,MATCH(dms_TradingName,dms_TradingName_List))
B67: RIN response - version no. | C67: 1 | D67: dms_RINversion
B68: Jurisdiction | C68: =INDEX(dms_JurisdictionList,MATCH(dms_TradingName,dms_TradingName_List)) -> NSW | D68: dms_Jurisdiction | E68: =INDEX(dms_JurisdictionList,MATCH(dms_TradingName,dms_TradingName_List))
B69: Backcast Multiyear EB, CA or ARR? | C69: 0 | D69: dms_MultiYear_Flag | E69: 1=y, 0-n
C70: 2013 | D70: dms_Specified_FinalYear | E70: The result here is returned to dms_CRCP_FinalYear_Result if dms_MultiYear_Flag is set to 1
B71: Single Year Model T/F | C71: =IF(dms_Model="EB",1,0) -> 0 | D71: dms_EB
C72: =IF(dms_Model="CA",1,0) -> 0 | D72: dms_CA | E72: =dms_SingleYear_Model
C73: =IF(dms_Model="ARR",1,0) -> 0 | D73: dms_ARR
B74: Single Year Final Year Reference | C74: CRY | D74: dms_SingleYear_FinalYear_Ref | E74: This is the reference for EB, CA & ARR RINs
B75: Single Year Final Year Result | C75: =INDIRECT(dms_SingleYear_FinalYear_Ref) -> 2019-20 | D75: dms_SingleYear_FinalYear_Result | E75: =INDIRECT(dms_SingleYear_FinalYear_Ref) | I75: Formula errors OK
B76: FRCP length in years | C76: =INDEX(dms_FRCPlength_List,MATCH(dms_TradingName,dms_TradingName_List)) -> 5 | D76: dms_FRCPlength_Num | E76: =INDEX(dms_FRCPlength_List,MATCH(dms_TradingName,dms_TradingName_List))
B77: Multi Year Final Year Reference | C77: =INDEX(dms_FinalYear_List,MATCH(dms_FRCPlength_Num,dms_FRCPlength_Num_List)) -> dms_FRCP_y5 | D77: dms_MultiYear_FinalYear_Ref | E77: =INDEX(dms_FinalYear_List,MATCH(dms_FRCPlength_Num,dms_FRCPlength_Num_List))
B78: Multi Year Final Year Result | C78: =IF(dms_MultiYear_Flag=0,INDIRECT(dms_MultiYear_FinalYear_Ref),dms_Specified_FinalYear) -> 2023-24 | D78: dms_MultiYear_FinalYear_Result | E78: =IF(dms_MultiYear_Flag=0,INDIRECT(dms_MultiYear_FinalYear_Ref),dms_Specified_FinalYear) | I78: Formula errors OK
B79: CRCP length in years | C79: =INDEX(dms_CRCPlength_List,MATCH(dms_TradingName,dms_TradingName_List)) -> 5 | D79: dms_CRCPlength_Num | E79: =INDEX(dms_CRCPlength_List,MATCH(dms_TradingName,dms_TradingName_List))
B80: CRCP Final Year Reference | C80: =INDEX(dms_CFinalYear_List,MATCH(dms_CRCPlength_Num,dms_CRCPlength_Num_List)) -> CRCP_y5 | D80: dms_CRCP_FinalYear_Ref | E80: =INDEX(dms_CFinalYear_List,MATCH(dms_CRCPlength_Num,dms_CRCPlength_Num_List))
B81: CRCP First Year Result | C81: =INDEX(dms_CRCP_years,MATCH(dms_CRCPlength_Num,dms_CRCP_index)) -> 2014-15 | D81: dms_CRCP_FirstYear_Result | E81: =INDEX(dms_CRCP_years,MATCH(dms_CRCPlength_Num,dms_CRCP_index))
B82: CRCP Final Year Result | C82: =IF(dms_MultiYear_Flag=0,(IF(SUM(dms_SingleYear_Model)>0,CRY,dms_CRCP_yZ)),dms_Specified_FinalYear) -> 2018-19 | D82: dms_CRCP_FinalYear_Result | E82: =IF(dms_MultiYear_Flag=0,(IF(SUM(dms_SingleYear_Model)>0,CRY,dms_CRCP_yZ)),dms_Specified_FinalYear)
B83: Table 6.6.3 - Public lighting repair - no. business days | C83: =INDEX(dms_663_List,MATCH(dms_TradingName,dms_TradingName_List)) -> 5 | D83: dms_663
B84: Distribution Determination Reference | C84: =INDEX(dms_DeterminationRef_List,MATCH(dms_TradingName,dms_TradingName_List)) -> 2014-19 Distribution Determination | D84: dms_DeterminationRef
B85: Backcast templates only - unit of measure | C85: $0s | D85: dms_Backcast_UOM | E85: If the cover sheet is for Backcast data ensure to apply dms_Backcast_UOM named range to this field. Otherwise, do not apply this named range.
B86: EB/CA Unit of Measure for Monetary Values | C86: $0s | D86: dms_dollar_nom_UOM | E86: If the cover sheet is attached to an EB files make sure this field is set
B88: discard this record? | C88: NO | D88: dms_DISCARD | E88: If record is to be discarded from DB set this flag to YES
B89: CBD Feeder for this business | C89: =INDEX(dms_CBD_flag,MATCH(dms_TradingName,dms_TradingName_List)) -> 0 | D89: dms_CBD_flag_NSP
B90: Urban Feeder for this business | C90: =INDEX(dms_Urban_flag,MATCH(dms_TradingName,dms_TradingName_List)) -> 0 | D90: dms_Urban_flag_NSP
B91: Short rural Feeder for this business | C91: =INDEX(dms_ShortRural_flag,MATCH(dms_TradingName,dms_TradingName_List)) -> YES | D91: dms_ShortRural_flag_NSP
B92: Long rural Feeder for this business | C92: =INDEX(dms_LongRural_flag,MATCH(dms_TradingName,dms_TradingName_List)) -> YES | D92: dms_LongRural_flag_NSP
B95: USES NAMED RANGES FLAG | C95: yes | D95: dms_Defined_Names_Used

Sheet 7.5 EBSS
B1: REGULATORY REPORTING STATEMENT
B2: =dms_TradingName -> Essential Energy
B3: =dms_Reg_Year_Span -> 2019-20 to 2023-24
B4: 7.5 EBSS
B6: Intstructions
B7: =CONCATENATE(dms_TradingName, " is required to populate all input cells (yellow) in this worksheet.") -> Essential Energy is required to populate all input cells (yellow) in this worksheet.
B8: Efficiency gains are calculated using the formulae below. Adjusted target and actual amounts are used to calculate the carry over amounts. We will calculate the efficiency gain in first year (n) as follows: En = (Fn – An) – (Fn-1 – An-1) + (Fb – Ab) where Fn is the forecast opex we approved for the first year, and An is the actual opex incurred in the first year, and so on. The formula references the base year used to forecast opex. Actual opex in the final year of the current regulatory period should be set so that any incremental efficiency gains made after the base year sum to zero.
B12: Actual and estimated inflation
C13: Actual | M13: Estimated
C14: =IF(dms_RPT="financial",VALUE(LEFT(D14,4)-1)&"-"&TEXT(VALUE(MID(D14,3,2)),"0#"),VALUE(LEFT(D14,4)+1)) -> 2007-08 | D14: =IF(dms_RPT="financial",VALUE(LEFT(E14,4)-1)&"-"&TEXT(VALUE(MID(E14,3,2)),"0#"),VALUE(LEFT(E14,4)+1)) -> 2008-09 | E14: =PRCP_y1 -> 2009-10 | F14: =PRCP_y2 -> 2010-11 | G14: =PRCP_y3 -> 2011-12 | H14: =PRCP_y4 -> 2012-13 | I14: =PRCP_y5 -> 2013-14 | J14: =CRCP_y1 -> 2014-15 | K14: =CRCP_y2 -> 2015-16 | L14: =CRCP_y3 -> 2016-17 | M14: =CRCP_y4 -> 2017-18 | N14: =CRCP_y5 -> 2018-19
B15: ABS CPI index - September (old base) | D15: 153.3495146 | E15: 160.0242718 | F15: 162.9368932 | G15: 167.5728155 | H15: 173.2524272
B16: ABS CPI index - September (rebased) | H16: 99.275 | I16: 101.025 | J16: 103.5 | K16: 106.075 | L16: 107.675 | M16: 109.05 | N16: 111.175
B17: Inflation rate (per cent) | E17: =E15/D15-1 -> 0.04352643242 | F17: 0.0182011224 | G17: =G15/F15-1 -> 0.02845225682 | H17: =H15/G15-1 -> 0.03389339513 | I17: =+I16/H16-1 -> 0.01762780156 | J17: 0.02449888641 | K17: 0.02487922705 | L17: 0.01508366722 | M17: 0.01276990945 | N17: 0.01948647409
B18: =CONCATENATE("Reconstructed cumulative index (",CRCP_y5,"=1)") -> Reconstructed cumulative index (2018-19=1) | D18: =E18/(1+E17) -> 0.7903798059 | E18: =F18/(1+F17) -> 0.8247822191 | F18: =G18/(1+G17) -> 0.8397941812 | G18: 0.863688221 | H18: 0.8929615471 | I18: =J18/(1+J17) -> 0.9087024961 | J18: 0.9309646953 | K18: 0.9541263773 | L18: =M18/(1+M17) -> 0.9685181021 | M18: =N18/(1+N17) -> 0.9808859906 | N18: 1
B22: 7.5.1 - The carryover amounts that arise from applying the EBSS during the current regulatory control period
B24: 7.5.1.1 - Opex allowance applicable to EBSS (EBSS target)
C25: =CONCATENATE("$m, real ",dms_RPTMonth," ",(LEFT(PRCP_y1,2)&RIGHT(PRCP_y1,2))-1) -> $m, real June 2009 | E25: =CONCATENATE("$m, real ",dms_RPTMonth," ",(LEFT(PRCP_y5,2)&RIGHT(PRCP_y5,2))) -> $m, real June 2014 | K25: =CONCATENATE("$m, real ", dms_DollarReal) -> $m, real June 2019
C26: Previous period | E26: Current regulatory control period | K26: Previous period | M26: Current regulatory control period
C27: =PRCP_y4 -> 2012-13 | D27: =PRCP_y5 -> 2013-14 | E27: =CRCP_y1 -> 2014-15 | F27: =CRCP_y2 -> 2015-16 | G27: =CRCP_y3 -> 2016-17 | H27: =CRCP_y4 -> 2017-18 | I27: =CRCP_y5 -> 2018-19 | K27: =PRCP_y4 -> 2012-13 | L27: =PRCP_y5 -> 2013-14 | M27: =CRCP_y1 -> 2014-15 | N27: =CRCP_y2 -> 2015-16 | O27: =CRCP_y3 -> 2016-17 | P27: =CRCP_y4 -> 2017-18 | Q27: =CRCP_y5 -> 2018-19
B28: Total opex allowance | K28: =+C28/$D$18 -> 0 | L28: =+D28/$D$18 -> 0 | M28: =+E28/$I$18 -> 0 | N28: =+F28/$I$18 -> 0 | O28: =+G28/$I$18 -> 0 | P28: =+H28/$I$18 -> 0 | Q28: =+I28/$I$18 -> 0
B29: Approved excludable costs - allowance
B30: Debt raising costs | K30: =+C30/$D$18 -> 0 | L30: 0 | M30: =E30/$I$18 -> 0 | N30: =F30/$I$18 -> 0 | O30: 0 | P30: 0 | Q30: 0
B31: Excluded cost category 1 | K31: 0 | L31: 0 | M31: =E31/$I$18 -> 0 | N31: =F31/$I$18 -> 0 | O31: =G31/$I$18 -> 0 | P31: =H31/$I$18 -> 0 | Q31: =I31/$I$18 -> 0
B32: Excluded cost category 2 | K32: 0 | L32: 0 | M32: =E32/$I$18 -> 0 | N32: 0 | O32: 0 | P32: 0 | Q32: 0
B33: Capitalisation policy changes | K33: 0 | L33: 0 | M33: 0 | N33: 0 | O33: 0 | P33: 0 | Q33: 0
B34: Opex associated with pass throughs | K34: 0 | L34: 0 | M34: 0 | N34: 0 | O34: 0 | P34: 0 | Q34: 0
B35: Other adjustments or exclusions required by the EBSS | K35: 0 | L35: 0 | M35: 0 | N35: 0 | O35: 0 | P35: 0 | Q35: 0
B36: Forecast opex for EBSS purposes | C36: =SUM(C28:C35) -> 0 | D36: 0 | E36: =SUM(E28:E35) -> 0 | F36: =SUM(F28:F35) -> 0 | G36: =SUM(G28:G35) -> 0 | H36: =SUM(H28:H35) -> 0 | I36: =SUM(I28:I35) -> 0 | K36: =+SUM(K28:K35) -> 0 | L36: =+SUM(L28:L35) -> 0 | M36: =+SUM(M28:M35) -> 0 | N36: 0 | O36: 0 | P36: 0 | Q36: 0
B38: 7.5.1.2 - Actual and estimated opex applicable to EBSS
C39: $m, Actual | K39: =CONCATENATE("$m, real ", dms_DollarReal) -> $m, real June 2019
C40: Previous period | E40: Current regulatory control period | K40: Previous period | M40: Current regulatory control period
C41: =PRCP_y4 -> 2012-13 | D41: =PRCP_y5 -> 2013-14 | E41: =CRCP_y1 -> 2014-15 | F41: =CRCP_y2 -> 2015-16 | G41: =CRCP_y3 -> 2016-17 | H41: =CRCP_y4 -> 2017-18 | I41: =CRCP_y5 -> 2018-19 | K41: =PRCP_y4 -> 2012-13 | L41: =PRCP_y5 -> 2013-14 | M41: =CRCP_y1 -> 2014-15 | N41: =CRCP_y2 -> 2015-16 | O41: =CRCP_y3 -> 2016-17 | P41: =CRCP_y4 -> 2017-18 | Q41: =CRCP_y5 -> 2018-19
B42: Total opex | K42: =+C42/H$18*(1+H$17)^0.5 -> 0 | L42: 0 | M42: =+E42/J$18*(1+J$17)^0.5 -> 0 | N42: =+F42/K$18*(1+K$17)^0.5 -> 0 | O42: =+G42/L$18*(1+L$17)^0.5 -> 0 | P42: =+H42/M$18*(1+M$17)^0.5 -> 0
B43: Approved excludable costs
B44: =B30 -> Debt raising costs | K44: =C44/H$18*(1+H$17)^0.5 -> 0 | L44: 0 | M44: =E44/J$18*(1+J$17)^0.5 -> 0 | N44: =F44/K$18*(1+K$17)^0.5 -> 0 | O44: 0 | P44: 0
B45: =B31 -> Excluded cost category 1 | K45: =C45/H$18*(1+H$17)^0.5 -> 0 | L45: =D45/I$18*(1+I$17)^0.5 -> 0 | M45: =E45/J$18*(1+J$17)^0.5 -> 0 | N45: =F45/K$18*(1+K$17)^0.5 -> 0 | O45: =G45/L$18*(1+L$17)^0.5 -> 0 | P45: =H45/M$18*(1+M$17)^0.5 -> 0
B46: =B32 -> Excluded cost category 2 | K46: 0 | L46: 0 | M46: =E46/J$18*(1+J$17)^0.5 -> 0 | N46: 0 | O46: 0 | P46: 0 | S46: =CONCATENATE(dms_TradingName," to nominate base year used to forecast opex (drop down menu)") -> Essential Energy to nominate base year used to forecast opex (drop down menu)
B47: Capitalisation policy changes | K47: 0 | L47: 0 | M47: 0 | N47: 0 | O47: 0 | P47: 0
B48: Movements in provisions related to opex | K48: 0 | L48: 0 | M48: 0 | N48: 0 | O48: 0 | P48: 0
B49: Other adjustments or exclusions required by the EBSS | K49: 0 | L49: 0 | M49: 0 | N49: 0 | O49: 0 | P49: 0
B50: Actual opex for EBSS purposes | C50: =SUM(C42:C49) -> 0 | D50: 0 | E50: =SUM(E42:E49) -> 0 | F50: =SUM(F42:F49) -> 0 | G50: =SUM(G42:G49) -> 0 | H50: =SUM(H42:H49) -> 0 | K50: =K42+SUM(K44:K49) -> 0 | L50: =L42+SUM(L44:L49) -> 0 | M50: =M42+SUM(M44:M49) -> 0 | N50: 0 | O50: 0 | P50: 0 | Q50: =IF(R50="2017-18", Q36-(P36-P50), Q36-(O36-O50)) -> 0 | R50: 2016-17
K52: =CONCATENATE("Incremental gain $m, real ", dms_DollarReal) -> Incremental gain $m, real June 2019
M53: =IF(dms_EBSS_status="No",(M36-M50)-(L36-L50)+(K36-K50),(M36-M50)) -> 0 | N53: =(N36-N50)-(M36-M50) -> 0 | O53: =(O36-O50)-(N36-N50) -> 0 | P53: =(P36-P50)-(O36-O50) -> 0 | Q53: =(Q36-Q50)-(P36-P50) -> 0
K55: Carryover
M56: Current regulatory control period | R56: Forthcoming regulatory control period
M57: =CONCATENATE("$m, real ", dms_DollarReal) -> $m, real June 2019
M58: =CRCP_y1 -> 2014-15 | N58: =CRCP_y2 -> 2015-16 | O58: =CRCP_y3 -> 2016-17 | P58: =CRCP_y4 -> 2017-18 | Q58: =CRCP_y5 -> 2018-19 | R58: =FRCP_y1 -> 2019-20 | S58: =FRCP_y2 -> 2020-21 | T58: =FRCP_y3 -> 2021-22 | U58: =FRCP_y4 -> 2022-23 | V58: =FRCP_y5 -> 2023-24 | W58: Total
K59: =CRCP_y1 -> 2014-15 | N59: =$M$53 -> 0 | O59: =$M$53 -> 0 | P59: =$M$53 -> 0 | Q59: =$M$53 -> 0 | R59: =$M$53 -> 0
K60: =CRCP_y2 -> 2015-16 | O60: =$N$53 -> 0 | P60: =$N$53 -> 0 | Q60: =$N$53 -> 0 | R60: =$N$53 -> 0 | S60: =$N$53 -> 0
K61: =CRCP_y3 -> 2016-17 | P61: =$O$53 -> 0 | Q61: =$O$53 -> 0 | R61: =$O$53 -> 0 | S61: =$O$53 -> 0 | T61: =$O$53 -> 0
K62: =CRCP_y4 -> 2017-18 | Q62: =$P$53 -> 0 | R62: =$P$53 -> 0 | S62: =$P$53 -> 0 | T62: =$P$53 -> 0 | U62: =$P$53 -> 0
K63: =CRCP_y5 -> 2018-19 | R63: =+$Q$53 -> 0 | S63: =+$Q$53 -> 0 | T63: =+$Q$53 -> 0 | U63: =+$Q$53 -> 0 | V63: =+$Q$53 -> 0
K64: =CONCATENATE("Total Carryover Amount ($m, ",dms_DollarReal,")") -> Total Carryover Amount ($m, June 2019) | R64: =+SUM(R59:R63) -> 0 | S64: =+SUM(S60:S63) -> 0 | T64: =+SUM(T61:T63) -> 0 | U64: =+SUM(U62:U63) -> 0 | V64: =+SUM(V63) -> 0 | W64: =+SUM(R64:V64) -> 0
K66: =CONCATENATE("PTRM inputs ($m, ",dms_DollarReal,")") -> PTRM inputs ($m, June 2019) | R66: =R64 -> 0 | S66: =S64 -> 0 | T66: =T64 -> 0 | U66: =U64 -> 0 | V66: =V64 -> 0 | W66: =+SUM(R66:V66) -> 0
B68: 7.5.2 - Proposed forecast opex for the EBSS for the forthcoming regulatory control period
C69: Forthcoming regulatory control period
C70: =CONCATENATE("$m, real ", dms_DollarReal) -> $m, real June 2019
C71: =FRCP_y1 -> 2019-20 | D71: =FRCP_y2 -> 2020-21 | E71: =FRCP_y3 -> 2021-22 | F71: =FRCP_y4 -> 2022-23 | G71: =FRCP_y5 -> 2023-24
B72: Forecast opex | C72: 371.4703008 | D72: 358.3752677 | E72: 346.114125 | F72: 322.8960529 | G72: 298.9206309 | H72: =+SUM(C72:G72) -> 1697.776377
B73: Less excluded costs
B74: < Enter category proposed for exclusion > eg. Debt raising costs | H74: =+SUM(C74:G74) -> 0
H75: =+SUM(C75:G75) -> 0
H76: 0
H77: 0
B78: =CONCATENATE("Adjusted forecast opex ($m, ",CRCP_y5,")") -> Adjusted forecast opex ($m, 2018-19) | C78: =+C72-SUM(C74:C77) -> 371.4703008 | D78: =+D72-SUM(D74:D77) -> 358.3752677 | E78: =+E72-SUM(E74:E77) -> 346.114125 | F78: =+F72-SUM(F74:F77) -> 322.8960529 | G78: =+G72-SUM(G74:G77) -> 298.9206309 | H78: =SUM(H72:H77) -> 1697.776377
